[Event "3rd Memorial Warakomska 2019"]
[Site "Suwalki"]
[Date "2019.08.10"]
[Round "7.35"]
[White "Kubicka, Anna"]
[Black "Kukula, Pawel"]
[Result "1/2-1/2"]
[ECO "C96"]
[WhiteElo "2202"]
[BlackElo "2209"]
[Annotator "NA"]
[PlyCount "130"]
[EventDate "2019.08.05"]
[EventType "swiss"]
[EventCountry "POL"]
[SourceTitle "playchess.com"]
[Source "ChessBase"]
[SourceQuality "1"]
[TimeControl "40/5400+30:1800+30"]

1. e4 {[%emt 0:00:00]} e5 {[%emt 0:00:00]} 2. Nf3 {[%emt 0:00:00]} Nc6 {[%emt 0:00:00]} 3. Bb5 {[%emt 0:00:04]} a6 {[%emt 0:00:08]} 4. Ba4 {[%emt 0:00:03]} Nf6 {[%emt 0:00:09]} 5. O-O {[%emt 0:00:07]} Be7 {[%emt 0:00:05]} 6. Re1 {[%emt 0:00:02]} b5 {[%emt 0:00:08]} 7. Bb3 {[%emt 0:00:03]} d6 {[%emt 0:00:11]} 8. c3 {[%emt 0:00:04]} O-O {[%emt 0:00:12]} 9. h3 {[%emt 0:00:04]} Na5 {[%emt 0:00:09]} 10. Bc2 {[%emt 0:00:04]} c5 {[%emt 0:00:06]} 11. d4 {[%emt 0:00:03]} Nd7 {[%emt 0:00:17]} 12. Nbd2 {[%emt 0:00:38]} exd4 {[%emt 0:00:08]} 13. cxd4 {[%emt 0:00:15]} Nc6 {[%emt 0:00:05]} 14. Nf1 {[%emt 0:01:10]} cxd4 {[%emt 0:05:06]} 15. Nxd4 {[%emt 0:00:18]} Nxd4 {[%emt 0:00:07]} 16. Qxd4 {[%emt 0:00:04]} Ne5 {[%emt 0:02:08]} 17. Qd1 {[%emt 0:06:33]} Ng6 {[%emt 0:11:40]} 18. Ne3 {[%emt 0:10:25]} Be6 {[%emt 0:01:38]} 19. Bb3 {[%emt 0:03:51]} Bf6 {[%emt 0:02:59]} 20. Bxe6 {[%emt 0:05:07]} fxe6 {[%emt 0:00:09]} 21. Ng4 {[%emt 0:01:05]} Ne5 {[%emt 0:09:55]} 22. Be3 {[%emt 0:10:50]} Nxg4 {[%emt 0:07:01]} 23. Qxg4 {[%emt 0:00:28]} Qe7 {[%emt 0:00:23]} 24. Qe2 {[%emt 0:01:38]} Rac8 {[%emt 0:02:19]} 25. Rac1 {[%emt 0:01:12]} Qd7 {[%emt 0:00:29]} 26. b3 {[%emt 0:00:41]} Rxc1 {[%emt 0:02:25]} 27. Rxc1 {[%emt 0:00:11]} Rc8 {[%emt 0:00:04]} 28. Rd1 {[%emt 0:00:06]} d5 {[%emt 0:16:41]} 29. exd5 {[%emt 0:18:23]} exd5 {[%emt 0:00:23]} 30. Bd4 {[%emt 0:01:21]} Bxd4 {[%emt 0:01:59]} 31. Rxd4 {[%emt 0:00:01]} h6 {[%emt 0:01:51]} 32. Qf3 {[%emt 0:03:17]} Rd8 {[%emt 0:00:21]} 33. Qd3 {[%emt 0:04:10]} Qd6 {[%emt 0:02:03]} 34. g3 {[%emt 0:01:03]} Qe6 {[%emt 0:04:38]} 35. Kg2 {[%emt 0:00:39]} Qc6 {[%emt 0:02:06]} 36. Qf5 {[%emt 0:03:56]} Qd7 {[%emt 0:02:59]} 37. Qg6 {[%emt 0:04:49]} Qd6 {[%emt 0:00:09]} 38. Qc2 {[%emt 0:17:27]} Qe5 {[%emt 0:04:49]} 39. Qd2 {[%emt 0:00:06]} Qf6 {[%emt 0:10:55]} 40. Qe3 {[%emt 0:00:00]} Qc6 {[%emt 0:00:00]} 41. Qf3 {[%emt 0:14:49]} Qc5 {[%emt 0:03:54]} 42. Qd3 {[%emt 0:03:11]} Qc6 {[%emt 0:00:05]} 43. a4 {[%emt 0:03:39]} Rf8 {[%emt 0:01:42]} 44. h4 {[%emt 0:02:32]} Rf7 {[%emt 0:01:01]} 45. Qe3 {[%emt 0:01:30]} Rf8 {[%emt 0:02:44]} 46. Qe5 {[%emt 0:00:50]} Rd8 {[%emt 0:01:54]} 47. h5 {[%emt 0:09:40]} Qd6 {[%emt 0:04:16]} 48. Qf5 {[%emt 0:00:55]} Qd7 {[%emt 0:00:25]} 49. Qg6 {[%emt 0:02:56]} Rf8 {[%emt 0:01:59]} 50. Qg4 {[%emt 0:02:51]} Qd6 {[%emt 0:01:27]} 51. Qe2 {[%emt 0:00:22]} Qc6 {[%emt 0:00:28]} 52. Qe5 {[%emt 0:00:16]} Rd8 {[%emt 0:00:15]} 53. Qf5 {[%emt 0:00:20]} Qd7 {[%emt 0:00:13]} 54. Qf4 {[%emt 0:00:47]} Rf8 {[%emt 0:00:45]} 55. Qe5 {[%emt 0:00:34]} Rf5 {[%emt 0:00:34]} 56. Qe2 {[%emt 0:00:13]} Rf8 {[%emt 0:03:41]} 57. Qg4 {[%emt 0:01:15]} Qd6 {[%emt 0:00:13]} 58. Rd3 {[%emt 0:01:03]} Qc6 {[%emt 0:01:49]} 59. Qd4 {[%emt 0:00:21]} Rd8 {[%emt 0:00:28]} 60. Re3 {[%emt 0:00:21]} Qd7 {[%emt 0:00:30]} 61. Re5 {[%emt 0:00:12]} Qd6 {[%emt 0:00:36]} 62. Rf5 {[%emt 0:00:54]} Qe6 {[%emt 0:00:29]} 63. Re5 {[%emt 0:00:48]} Qd6 {[%emt 0:00:05]} 64. Re3 {[%emt 0:00:16]} Qd7 {[%emt 0:00:16]} 65. Re5 {[%emt 0:00:50]} Qd6 1/2-1/2

[Event "3rd Memorial Warakomska 2019"]
[Site "Suwalki"]
[Date "2019.08.10"]
[Round "7.36"]
[White "Czopor, Maciej"]
[Black "Jankowiak, Tomasz"]
[Result "0-1"]
[ECO "C70"]
[WhiteElo "2250"]
[BlackElo "2104"]
[Annotator "NA"]
[PlyCount "76"]
[EventDate "2019.08.05"]
[EventType "swiss"]
[EventCountry "POL"]
[SourceTitle "playchess.com"]
[Source "ChessBase"]
[SourceQuality "1"]
[TimeControl "40/5400+30:1800+30"]

1. e4 {[%emt 0:00:00]} e5 {[%emt 0:01:07]} 2. Nf3 {[%emt 0:00:00]} Nc6 {[%emt 0:00:06]} 3. Bb5 {[%emt 0:00:05]} a6 {[%emt 0:00:06]} 4. Ba4 {[%emt 0:00:09]} f5 {[%emt 0:00:12]} 5. d3 {[%emt 0:01:46]} fxe4 {[%emt 0:00:19]} 6. dxe4 {[%emt 0:00:15]} Nf6 {[%emt 0:01:18]} 7. O-O {[%emt 0:00:59]} Bc5 {[%emt 0:00:30]} 8. Bb3 {[%emt 0:05:59]} d6 {[%emt 0:05:36]} 9. Nc3 {[%emt 0:06:25]} Na5 {[%emt 0:23:28]} 10. Qd3 {[%emt 0:04:18]} Nxb3 {[%emt 0:12:54]} 11. axb3 {[%emt 0:00:23]} Be6 {[%emt 0:00:21]} 12. Ng5 {[%emt 0:02:58]} Bg8 {[%emt 0:03:20]} 13. Be3 {[%emt 0:28:24]} Bxe3 {[%emt 0:03:25]} 14. Qxe3 {[%emt 0:00:13]} h6 {[%emt 0:07:14]} 15. Nh3 {[%emt 0:00:29]} g5 {[%emt 0:01:40]} 16. f3 {[%emt 0:00:45]} Qd7 {[%emt 0:04:42]} 17. Nf2 {[%emt 0:00:56]} Be6 {[%emt 0:00:18]} 18. Ne2 {[%emt 0:08:03]} Nh5 {[%emt 0:07:30]} 19. Nd3 {[%emt 0:08:21]} Nf4 {[%emt 0:03:40]} 20. Ndxf4 {[%emt 0:02:56]} gxf4 {[%emt 0:00:54]} 21. Qc3 {[%emt 0:01:18]} O-O-O {[%emt 0:00:00]} 22. Rf2 {[%emt 0:07:24]} h5 {[%emt 0:03:46]} 23. Kf1 {[%emt 0:02:36]} h4 {[%emt 0:00:23]} 24. h3 {[%emt 0:00:13]} Rhg8 {[%emt 0:02:25]} 25. Ng1 {[%emt 0:00:50]} Qb5+ {[%emt 0:01:21]} 26. Ke1 {[%emt 0:01:01]} Rg3 {[%emt 0:01:01]} 27. Qa5 {[%emt 0:10:14]} Qd7 {[%emt 0:02:23]} 28. Rd1 {[%emt 0:01:55]} Qc6 {[%emt 0:02:03]} 29. c4 {[%emt 0:02:03]} Rdg8 {[%emt 0:01:09]} 30. Rdd2 {[%emt 0:00:14]} b5 {[%emt 0:01:25]} 31. Rc2 {[%emt 0:01:00]} bxc4 {[%emt 0:01:03]} 32. bxc4 {[%emt 0:00:33]} Qb6 {[%emt 0:04:07]} 33. Qc3 {[%emt 0:02:54]} Qe3+ {[%emt 0:00:55]} 34. Qxe3 {[%emt 0:00:23]} fxe3 {[%emt 0:00:04]} 35. Rfe2 {[%emt 0:00:04]} Bxh3 {[%emt 0:00:34]} 36. Nxh3 {[%emt 0:00:27]} Rxh3 {[%emt 0:00:05]} 37. Rxe3 {[%emt 0:00:14]} Rh1+ {[%emt 0:00:43]} 38. Kf2 {[%emt 0:00:19]} h3 {[%emt 0:00:04]} 0-1

[Event "3rd Memorial Warakomska 2019"]
[Site "Suwalki"]
[Date "2019.08.10"]
[Round "7.37"]
[White "Maj, Pawel"]
[Black "Selbes, Tarik"]
[Result "1/2-1/2"]
[ECO "A15"]
[WhiteElo "2127"]
[BlackElo "2342"]
[Annotator "NA"]
[PlyCount "67"]
[EventDate "2019.08.05"]
[EventType "swiss"]
[EventCountry "POL"]
[SourceTitle "playchess.com"]
[Source "ChessBase"]
[SourceQuality "1"]
[TimeControl "40/5400+30:1800+30"]

1. c4 {[%emt 0:00:00]} Nf6 {[%emt 0:01:33]} 2. g3 {[%emt 0:00:00]} e6 {[%emt 0:01:23]} 3. Bg2 {[%emt 0:00:01]} d5 {[%emt 0:00:26]} 4. Nf3 {[%emt 0:00:11]} Be7 {[%emt 0:00:15]} 5. b3 {[%emt 0:00:33]} O-O {[%emt 0:00:29]} 6. O-O {[%emt 0:00:07]} c5 {[%emt 0:01:50]} 7. cxd5 {[%emt 0:00:47]} Nxd5 {[%emt 0:00:43]} 8. Bb2 {[%emt 0:03:04]} Nc6 {[%emt 0:00:30]} 9. d4 {[%emt 0:05:38]} cxd4 {[%emt 0:02:50]} 10. Nxd4 {[%emt 0:00:53]} Bf6 {[%emt 0:00:33]} 11. Nxc6 {[%emt 0:03:09]} bxc6 {[%emt 0:00:06]} 12. Bxf6 {[%emt 0:05:09]} Qxf6 {[%emt 0:00:06]} 13. Nd2 {[%emt 0:01:15]} Ba6 {[%emt 0:01:30]} 14. Nc4 {[%emt 0:08:50]} Rfd8 {[%emt 0:03:13]} 15. Qc2 {[%emt 0:05:22]} Rac8 {[%emt 0:04:33]} 16. Rac1 {[%emt 0:02:36]} c5 {[%emt 0:00:22]} 17. a3 {[%emt 0:06:10]} g6 {[%emt 0:06:16]} 18. Rfd1 {[%emt 0:04:41]} Bxc4 {[%emt 0:08:53]} 19. Qxc4 {[%emt 0:02:15]} Qb2 {[%emt 0:00:42]} 20. Rc2 {[%emt 0:11:32]} Qxa3 {[%emt 0:06:14]} 21. Bxd5 {[%emt 0:01:40]} exd5 {[%emt 0:00:12]} 22. Rxd5 {[%emt 0:00:08]} Rxd5 {[%emt 0:13:04]} 23. Qxd5 {[%emt 0:00:15]} h5 {[%emt 0:00:44]} 24. Kg2 {[%emt 0:01:53]} Qb4 {[%emt 0:02:17]} 25. e4 {[%emt 0:01:45]} a5 {[%emt 0:06:53]} 26. Rc4 {[%emt 0:05:03]} Qb6 {[%emt 0:01:09]} 27. Rc3 {[%emt 0:00:32]} Rc7 {[%emt 0:05:48]} 28. Rd3 {[%emt 0:04:09]} Re7 {[%emt 0:04:41]} 29. Qd8+ {[%emt 0:08:00]} Qxd8 {[%emt 0:00:05]} 30. Rxd8+ {[%emt 0:00:03]} Kg7 {[%emt 0:00:04]} 31. Ra8 {[%emt 0:00:05]} Rxe4 {[%emt 0:00:09]} 32. Rxa5 {[%emt 0:00:04]} Rb4 {[%emt 0:00:06]} 33. Rxc5 {[%emt 0:00:04]} Rxb3 {[%emt 0:00:04]} 34. h4 1/2-1/2

[Event "3rd Memorial Warakomska 2019"]
[Site "Suwalki"]
[Date "2019.08.10"]
[Round "7.38"]
[White "Advait, Bagri"]
[Black "Chan, Kim Yew"]
[Result "1-0"]
[ECO "B31"]
[WhiteElo "1968"]
[BlackElo "2276"]
[Annotator "NA"]
[PlyCount "59"]
[EventDate "2019.08.05"]
[EventType "swiss"]
[EventCountry "POL"]
[SourceTitle "playchess.com"]
[Source "ChessBase"]
[SourceQuality "1"]
[TimeControl "40/5400+30:1800+30"]

1. e4 {[%emt 0:00:00]} c5 {[%emt 0:00:00]} 2. Nf3 {[%emt 0:00:05]} Nc6 {[%emt 0:00:00]} 3. Bb5 {[%emt 0:00:18]} g6 {[%emt 0:00:00]} 4. O-O {[%emt 0:00:14]} Bg7 {[%emt 0:00:00]} 5. Re1 {[%emt 0:00:16]} Nf6 {[%emt 0:00:00]} 6. e5 {[%emt 0:00:14]} Nd5 {[%emt 0:00:25]} 7. Nc3 {[%emt 0:00:14]} Nc7 {[%emt 0:01:10]} 8. Bxc6 {[%emt 0:00:11]} dxc6 {[%emt 0:00:03]} 9. Ne4 {[%emt 0:00:22]} b6 {[%emt 0:04:29]} 10. Nf6+ {[%emt 0:00:11]} Kf8 {[%emt 0:00:28]} 11. Ne4 {[%emt 0:00:08]} Bg4 {[%emt 0:03:07]} 12. d3 {[%emt 0:00:09]} h6 {[%emt 0:25:27]} 13. Ng3 {[%emt 0:11:47]} Qd5 {[%emt 0:10:02]} 14. Re4 {[%emt 0:20:56]} h5 {[%emt 0:00:50]} 15. c4 {[%emt 0:09:12]} Qd7 {[%emt 0:01:49]} 16. h3 {[%emt 0:03:09]} Bxf3 {[%emt 0:01:19]} 17. Qxf3 {[%emt 0:00:12]} Ne6 {[%emt 0:05:53]} 18. Be3 {[%emt 0:07:44]} h4 {[%emt 0:02:43]} 19. Ne2 {[%emt 0:01:02]} Qxd3 {[%emt 0:02:55]} 20. Nf4 {[%emt 0:05:12]} Nxf4 {[%emt 0:01:15]} 21. Rxf4 {[%emt 0:00:51]} Kg8 {[%emt 0:05:09]} 22. Rxf7 {[%emt 0:05:09]} Qxc4 {[%emt 0:00:06]} 23. Rxe7 {[%emt 0:00:36]} Rf8 {[%emt 0:19:00]} 24. Qxc6 {[%emt 0:03:32]} Kh7 {[%emt 0:01:44]} 25. Qb7 {[%emt 0:02:25]} Rhg8 {[%emt 0:00:13]} 26. Rd1 {[%emt 0:00:48]} Kh8 {[%emt 0:03:56]} 27. Rdd7 {[%emt 0:00:36]} Rxf2 {[%emt 0:00:40]} 28. Rxg7 {[%emt 0:04:08]} Rxg7 {[%emt 0:05:12]} 29. Rxg7 {[%emt 0:00:13]} Qe4 {[%emt 0:06:00]} 30. Rh7+ {[%emt 0:00:15]} 1-0

[Event "3rd Memorial Warakomska 2019"]
[Site "Suwalki"]
[Date "2019.08.10"]
[Round "7.39"]
[White "Szostko, Jakub"]
[Black "Korbal, Arkadiusz"]
[Result "0-1"]
[ECO "B30"]
[WhiteElo "2245"]
[BlackElo "2178"]
[Annotator "NA"]
[PlyCount "106"]
[EventDate "2019.08.05"]
[EventType "swiss"]
[EventCountry "POL"]
[SourceTitle "playchess.com"]
[Source "ChessBase"]
[SourceQuality "1"]
[TimeControl "40/5400+30:1800+30"]

1. e4 {[%emt 0:00:00]} c5 {[%emt 0:06:08]} 2. Nf3 {[%emt 0:00:00]} Nc6 {[%emt 0:00:23]} 3. Bb5 {[%emt 0:00:00]} e6 {[%emt 0:00:53]} 4. O-O {[%emt 0:00:10]} Nge7 {[%emt 0:01:02]} 5. d4 {[%emt 0:00:21]} cxd4 {[%emt 0:02:03]} 6. Nxd4 {[%emt 0:00:07]} Nxd4 {[%emt 0:01:53]} 7. Qxd4 {[%emt 0:00:17]} a6 {[%emt 0:01:05]} 8. Be2 {[%emt 0:01:43]} Nc6 {[%emt 0:00:19]} 9. Qc3 {[%emt 0:03:05]} Qf6 {[%emt 0:05:41]} 10. Qxf6 {[%emt 0:01:46]} gxf6 {[%emt 0:01:13]} 11. c4 {[%emt 0:08:52]} Nd4 12. Bd3 {[%emt 0:02:39]} Rg8 {[%emt 0:15:26]} 13. Be3 {[%emt 0:07:08]} Bc5 {[%emt 0:07:38]} 14. Kh1 {[%emt 0:03:34]} d6 {[%emt 0:00:54]} 15. Nc3 {[%emt 0:06:04]} Bd7 {[%emt 0:00:25]} 16. Rfd1 {[%emt 0:02:51]} Bc6 {[%emt 0:04:26]} 17. Bb1 {[%emt 0:12:30]} e5 {[%emt 0:00:24]} 18. Nd5 {[%emt 0:03:11]} Bxd5 {[%emt 0:00:16]} 19. exd5 {[%emt 0:01:28]} h5 {[%emt 0:06:23]} 20. Bd3 {[%emt 0:04:14]} Ke7 {[%emt 0:05:57]} 21. h4 {[%emt 0:07:00]} f5 {[%emt 0:02:17]} 22. Bxd4 {[%emt 0:04:54]} Bxd4 {[%emt 0:00:18]} 23. Rd2 {[%emt 0:01:33]} Kf6 {[%emt 0:01:49]} 24. Rf1 {[%emt 0:02:45]} Bc5 {[%emt 0:06:59]} 25. Be2 {[%emt 0:04:05]} e4 {[%emt 0:02:42]} 26. Rc2 {[%emt 0:01:45]} f4 {[%emt 0:02:16]} 27. Bd1 {[%emt 0:02:44]} Ke5 {[%emt 0:03:00]} 28. Kh2 {[%emt 0:01:34]} Rg7 {[%emt 0:01:25]} 29. Rc3 {[%emt 0:07:01]} Bd4 {[%emt 0:06:02]} 30. Rb3 {[%emt 0:00:12]} f5 {[%emt 0:00:42]} 31. Kh3 {[%emt 0:02:06]} Rag8 {[%emt 0:03:22]} 32. g3 {[%emt 0:00:53]} f3 {[%emt 0:01:23]} 33. Bxf3 {[%emt 0:00:36]} Bxf2 {[%emt 0:01:39]} 34. Rxf2 {[%emt 0:01:35]} Rxg3+ {[%emt 0:00:07]} 35. Kh2 {[%emt 0:00:01]} Rxf3 {[%emt 0:01:36]} 36. Rbxf3 {[%emt 0:00:20]} exf3 {[%emt 0:00:03]} 37. Rxf3 {[%emt 0:00:06]} Rg4 {[%emt 0:02:06]} 38. Re3+ {[%emt 0:01:28]} Re4 {[%emt 0:01:20]} 39. Rb3 {[%emt 0:02:10]} Rxh4+ {[%emt 0:01:47]} 40. Kg3 {[%emt 0:00:00]} Rg4+ {[%emt 0:00:00]} 41. Kf3 {[%emt 0:03:09]} Rxc4 {[%emt 0:12:09]} 42. Rxb7 {[%emt 0:00:31]} Rc2 {[%emt 0:01:15]} 43. Rb6 {[%emt 0:03:59]} h4 {[%emt 0:00:27]} 44. Rxa6 {[%emt 0:00:50]} Rxb2 {[%emt 0:01:00]} 45. Ra8 {[%emt 0:00:33]} h3 {[%emt 0:00:19]} 46. Re8+ {[%emt 0:00:32]} Kxd5 {[%emt 0:00:19]} 47. Kf4 {[%emt 0:00:12]} h2 {[%emt 0:01:33]} 48. Rh8 {[%emt 0:01:40]} Rf2+ {[%emt 0:00:15]} 49. Kg5 {[%emt 0:00:10]} Ke4 {[%emt 0:01:08]} 50. Rh3 {[%emt 0:03:27]} Rxa2 {[%emt 0:01:02]} 51. Rh4+ {[%emt 0:00:08]} Kf3 {[%emt 0:00:19]} 52. Kxf5 {[%emt 0:00:10]} Kg2 {[%emt 0:00:10]} 53. Rg4+ {[%emt 0:00:05]} Kf2 {[%emt 0:00:13]} 0-1

[Event "3rd Memorial Warakomska 2019"]
[Site "Suwalki"]
[Date "2019.08.10"]
[Round "7.40"]
[White "Mulet, Piotr"]
[Black "Dmochowska, Agnieszka"]
[Result "1-0"]
[ECO "A13"]
[WhiteElo "2244"]
[BlackElo "2126"]
[Annotator "NA"]
[PlyCount "59"]
[EventDate "2019.08.05"]
[EventType "swiss"]
[EventCountry "POL"]
[SourceTitle "playchess.com"]
[Source "ChessBase"]
[SourceQuality "1"]
[TimeControl "40/5400+30:1800+30"]

1. c4 {[%emt 0:01:44]} e6 {[%emt 0:00:00]} 2. Nf3 {[%emt 0:00:17]} Nf6 {[%emt 0:00:04]} 3. e3 {[%emt 0:00:33]} d5 {[%emt 0:01:29]} 4. Nc3 {[%emt 0:00:16]} Be7 {[%emt 0:00:12]} 5. d4 {[%emt 0:00:35]} O-O {[%emt 0:00:35]} 6. Bd3 {[%emt 0:00:57]} b6 {[%emt 0:03:03]} 7. O-O {[%emt 0:00:50]} Bb7 {[%emt 0:03:25]} 8. b3 {[%emt 0:01:30]} c5 {[%emt 0:02:37]} 9. cxd5 {[%emt 0:00:57]} exd5 {[%emt 0:00:14]} 10. Bb2 {[%emt 0:00:41]} Nbd7 {[%emt 0:00:49]} 11. Rc1 {[%emt 0:01:08]} Rc8 {[%emt 0:01:48]} 12. Qe2 {[%emt 0:00:57]} Ne4 {[%emt 0:06:28]} 13. Rfd1 {[%emt 0:01:08]} f5 {[%emt 0:04:33]} 14. dxc5 {[%emt 0:02:53]} bxc5 {[%emt 0:09:50]} 15. Nxe4 {[%emt 0:24:27]} fxe4 {[%emt 0:02:20]} 16. Bxe4 {[%emt 0:00:05]} dxe4 {[%emt 0:04:43]} 17. Ne5 {[%emt 0:00:09]} Bc6 {[%emt 0:01:05]} 18. Nxc6 {[%emt 0:01:04]} Rxc6 {[%emt 0:00:33]} 19. Qg4 {[%emt 0:00:08]} Nf6 {[%emt 0:21:08]} 20. Bxf6 {[%emt 0:01:31]} Rcxf6 {[%emt 0:00:48]} 21. Rxd8 {[%emt 0:00:12]} Bxd8 {[%emt 0:00:07]} 22. Rc2 {[%emt 0:02:35]} Ba5 {[%emt 0:07:29]} 23. Qxe4 {[%emt 0:02:21]} Bb4 {[%emt 0:00:16]} 24. g3 {[%emt 0:01:32]} Rd6 {[%emt 0:01:07]} 25. Kg2 {[%emt 0:00:24]} Rfd8 {[%emt 0:00:41]} 26. h4 {[%emt 0:01:39]} h6 {[%emt 0:00:21]} 27. a3 {[%emt 0:02:50]} Bxa3 {[%emt 0:01:35]} 28. Ra2 {[%emt 0:00:07]} Bb4 {[%emt 0:00:12]} 29. Rxa7 {[%emt 0:00:09]} Rd2 {[%emt 0:01:37]} 30. Qe5 {[%emt 0:00:29]} 1-0

[Event "3rd Memorial Warakomska 2019"]
[Site "Suwalki"]
[Date "2019.08.10"]
[Round "7.41"]
[White "Kokoszczynski, Jan"]
[Black "Oborski, Artur"]
[Result "1-0"]
[ECO "E12"]
[WhiteElo "2238"]
[BlackElo "1969"]
[Annotator "NA"]
[PlyCount "89"]
[EventDate "2019.08.05"]
[EventType "swiss"]
[EventCountry "POL"]
[SourceTitle "playchess.com"]
[Source "ChessBase"]
[SourceQuality "1"]
[TimeControl "40/5400+30:1800+30"]

1. d4 {[%emt 0:00:00]} Nf6 {[%emt 0:00:00]} 2. c4 {[%emt 0:00:00]} e6 {[%emt 0:00:00]} 3. Nf3 {[%emt 0:00:32]} b6 {[%emt 0:00:00]} 4. a3 {[%emt 0:00:43]} Bb7 {[%emt 0:00:04]} 5. Nc3 {[%emt 0:00:23]} d5 {[%emt 0:00:08]} 6. cxd5 {[%emt 0:00:10]} Nxd5 {[%emt 0:00:07]} 7. Qc2 {[%emt 0:00:20]} Nxc3 {[%emt 0:02:10]} 8. bxc3 {[%emt 0:06:22]} Be7 {[%emt 0:00:32]} 9. e4 {[%emt 0:01:03]} O-O {[%emt 0:00:09]} 10. Bd3 {[%emt 0:00:06]} c5 {[%emt 0:03:23]} 11. O-O {[%emt 0:01:16]} cxd4 {[%emt 0:04:04]} 12. cxd4 {[%emt 0:00:27]} Qc8 {[%emt 0:00:27]} 13. Qe2 {[%emt 0:05:09]} Ba6 {[%emt 0:01:25]} 14. Bb2 {[%emt 0:00:09]} Bxd3 {[%emt 0:01:12]} 15. Qxd3 {[%emt 0:00:06]} Qa6 {[%emt 0:05:16]} 16. Rad1 {[%emt 0:02:25]} Qxd3 {[%emt 0:04:17]} 17. Rxd3 {[%emt 0:00:21]} Nd7 {[%emt 0:00:10]} 18. Rc1 {[%emt 0:00:23]} Rfc8 {[%emt 0:04:02]} 19. Rdc3 {[%emt 0:01:19]} Rxc3 {[%emt 0:00:08]} 20. Rxc3 {[%emt 0:00:01]} Kf8 {[%emt 0:00:24]} 21. Kf1 {[%emt 0:00:47]} Nf6 {[%emt 0:04:27]} 22. Nd2 {[%emt 0:00:47]} b5 {[%emt 0:01:21]} 23. Rc7 {[%emt 0:03:20]} Ke8 {[%emt 0:15:17]} 24. Ke2 {[%emt 0:10:18]} Kd8 {[%emt 0:00:54]} 25. Rc1 {[%emt 0:14:56]} Rc8 {[%emt 0:03:38]} 26. Rb1 {[%emt 0:03:46]} a5 {[%emt 0:14:51]} 27. Kd3 {[%emt 0:11:23]} a4 {[%emt 0:06:26]} 28. Bc3 {[%emt 0:03:29]} Rb8 {[%emt 0:00:10]} 29. Bb4 {[%emt 0:02:32]} Bxb4 {[%emt 0:01:28]} 30. Rxb4 {[%emt 0:00:18]} Kc7 {[%emt 0:01:13]} 31. Nb1 {[%emt 0:00:36]} Kc6 {[%emt 0:00:34]} 32. Nc3 {[%emt 0:00:15]} Rb6 {[%emt 0:01:03]} 33. Rb1 {[%emt 0:03:56]} Ne8 {[%emt 0:05:36]} 34. Rc1 {[%emt 0:04:33]} Kb7 {[%emt 0:01:04]} 35. e5 {[%emt 0:02:38]} f5 {[%emt 0:01:38]} 36. d5 {[%emt 0:02:31]} exd5 {[%emt 0:04:16]} 37. Nxd5 {[%emt 0:01:01]} Rh6 {[%emt 0:00:08]} 38. h3 {[%emt 0:01:29]} Rh4 {[%emt 0:01:47]} 39. f3 {[%emt 0:12:22]} g5 {[%emt 0:00:52]} 40. Rc5 {[%emt 0:00:00]} g4 {[%emt 0:00:00]} 41. hxg4 {[%emt 0:04:41]} fxg4 {[%emt 0:02:09]} 42. f4 {[%emt 0:07:42]} Rh2 {[%emt 0:00:35]} 43. Rc2 {[%emt 0:01:53]} Rh1 {[%emt 0:01:00]} 44. f5 {[%emt 0:02:55]} Rh5 {[%emt 0:02:13]} 45. Ke4 {[%emt 0:03:31]} 1-0

[Event "3rd Memorial Warakomska 2019"]
[Site "Suwalki"]
[Date "2019.08.10"]
[Round "7.42"]
[White "Lisowski, Krzysztof"]
[Black "Bai, Adelard"]
[Result "0-1"]
[ECO "C45"]
[WhiteElo "2187"]
[BlackElo "2113"]
[Annotator "NA"]
[PlyCount "50"]
[EventDate "2019.08.05"]
[EventType "swiss"]
[EventCountry "POL"]
[SourceTitle "playchess.com"]
[Source "ChessBase"]
[SourceQuality "1"]
[TimeControl "40/5400+30:1800+30"]

1. e4 {[%emt 0:00:00]} e5 {[%emt 0:00:00]} 2. Nf3 {[%emt 0:00:01]} Nc6 {[%emt 0:00:00]} 3. d4 {[%emt 0:00:18]} exd4 {[%emt 0:00:12]} 4. Nxd4 {[%emt 0:00:08]} Nf6 {[%emt 0:00:08]} 5. Nxc6 {[%emt 0:00:26]} bxc6 {[%emt 0:00:10]} 6. e5 {[%emt 0:00:15]} Qe7 {[%emt 0:00:41]} 7. Qe2 {[%emt 0:00:20]} Nd5 {[%emt 0:00:16]} 8. h4 {[%emt 0:00:38]} Qe6 {[%emt 0:01:45]} 9. Nd2 {[%emt 0:05:17]} d6 {[%emt 0:10:52]} 10. exd6 {[%emt 0:00:22]} cxd6 {[%emt 0:08:37]} 11. a3 {[%emt 0:13:46]} Be7 {[%emt 0:07:15]} 12. Nf3 {[%emt 0:07:09]} O-O {[%emt 0:03:55]} 13. Ng5 {[%emt 0:30:21]} Qxe2+ {[%emt 0:15:15]} 14. Bxe2 {[%emt 0:00:25]} Re8 {[%emt 0:03:08]} 15. c4 {[%emt 0:09:39]} Nb6 {[%emt 0:06:52]} 16. Be3 {[%emt 0:02:25]} Bf6 {[%emt 0:05:40]} 17. O-O-O {[%emt 0:12:08]} d5 {[%emt 0:17:12]} 18. Rhe1 {[%emt 0:07:19]} h6 {[%emt 0:07:53]} 19. Bxb6 {[%emt 0:04:54]} axb6 {[%emt 0:02:15]} 20. Nf3 {[%emt 0:01:43]} dxc4 {[%emt 0:01:56]} 21. Bxc4 {[%emt 0:00:20]} Bg4 {[%emt 0:01:37]} 22. Rd3 {[%emt 0:02:26]} Rxe1+ {[%emt 0:00:49]} 23. Nxe1 {[%emt 0:00:06]} Be2 {[%emt 0:00:49]} 24. Rd8+ {[%emt 0:00:51]} Rxd8 {[%emt 0:00:06]} 25. Bxe2 {[%emt 0:00:06]} Re8 {[%emt 0:00:05]} 0-1